[Event "Late-Titled-Tuesday-Blitz-September-19-2023"]
[Site "Chess.com"]
[Date "2023.09.19"]
[Round "2"]
[White "Balla_Tamas"]
[Black "PassedPawnMustPushed"]
[Result "1-0"]
[WhiteElo "2432"]
[BlackElo "2128"]
[TimeControl "180+1"]
[EndTime "14:16:02 PDT"]
[Termination "Balla_Tamas won on time"]

1. e4 {[%clk 0:02:59]} 1... Nf6 {[%clk 0:03:00.9]} 2. e5 {[%clk 0:02:59.2]} 2...
Ng8 {[%clk 0:03:01.4]} 3. d4 {[%clk 0:02:58.7]} 3... d6 {[%clk 0:03:02.1]} 4.
exd6 {[%clk 0:02:55.7]} 4... cxd6 {[%clk 0:03:03]} 5. c4 {[%clk 0:02:48.1]} 5...
g6 {[%clk 0:03:03.1]} 6. Nc3 {[%clk 0:02:47.9]} 6... Bg7 {[%clk 0:03:03.7]} 7.
Nf3 {[%clk 0:02:46.6]} 7... Nc6 {[%clk 0:03:03.5]} 8. d5 {[%clk 0:02:43.1]} 8...
Ne5 {[%clk 0:03:03.4]} 9. Nxe5 {[%clk 0:02:42]} 9... Bxe5 {[%clk 0:03:04.3]} 10.
Bd3 {[%clk 0:02:41.6]} 10... Qb6 {[%clk 0:02:37.6]} 11. O-O {[%clk 0:02:39.1]}
11... h5 {[%clk 0:02:33]} 12. h3 {[%clk 0:02:20.6]} 12... Nf6 {[%clk 0:02:21.2]}
13. Nb5 {[%clk 0:02:16.7]} 13... Ng4 {[%clk 0:02:04.4]} 14. hxg4 {[%clk
0:01:28.5]} 14... hxg4 {[%clk 0:02:05.3]} 15. Re1 {[%clk 0:01:29.1]} 15... Bh2+
{[%clk 0:00:42]} 16. Kf1 {[%clk 0:01:28.3]} 16... a6 {[%clk 0:00:29.1]} 17. Be3
{[%clk 0:01:27.9]} 17... Qa5 {[%clk 0:00:22.7]} 18. b4 {[%clk 0:01:24.7]} 18...
Qd8 {[%clk 0:00:18.2]} 19. Nd4 {[%clk 0:01:23.1]} 19... Be5 {[%clk 0:00:11.7]}
20. g3 {[%clk 0:01:12.4]} 20... f5 {[%clk 0:00:03.1]} 21. Rc1 {[%clk 0:01:02.1]}
21... Kf7 {[%clk 0:00:02.7]} 22. Ne6 {[%clk 0:01:00.1]} 22... Bxe6 {[%clk
0:00:02.2]} 23. dxe6+ {[%clk 0:01:01]} 23... Kxe6 {[%clk 0:00:02.8]} 24. Bf4
{[%clk 0:01:01.9]} 24... Rh2 {[%clk 0:00:02.2]} 25. Qe2 {[%clk 0:01:00.4]} 25...
Qh8 {[%clk 0:00:01.6]} 26. Bxe5 {[%clk 0:01:00.6]} 26... dxe5 {[%clk 0:00:02.5]}
27. Qe3 {[%clk 0:00:57.2]} 27... Rh1+ {[%clk 0:00:03]} 28. Ke2 {[%clk
0:00:57.8]} 28... Qh2 {[%clk 0:00:02.5]} 29. Rxh1 {[%clk 0:00:57]} 1-0

[Event "Late-Titled-Tuesday-Blitz-September-19-2023"]
[Site "Chess.com"]
[Date "2023.09.19"]
[Round "2"]
[White "sergoy"]
[Black "ArmanGhevondyanchess"]
[Result "1-0"]
[WhiteElo "2906"]
[BlackElo "2555"]
[TimeControl "180+1"]
[EndTime "14:16:05 PDT"]
[Termination "sergoy won by resignation"]

1. d4 {[%clk 0:03:00.9]} 1... Nf6 {[%clk 0:02:59.7]} 2. c4 {[%clk 0:03:01.6]}
2... g6 {[%clk 0:02:59.7]} 3. Nf3 {[%clk 0:03:01.8]} 3... Bg7 {[%clk 0:02:59.6]}
4. g3 {[%clk 0:03:02.5]} 4... O-O {[%clk 0:02:59.6]} 5. Bg2 {[%clk 0:03:03.3]}
5... d5 {[%clk 0:02:59.6]} 6. cxd5 {[%clk 0:03:03]} 6... Nxd5 {[%clk 0:02:59.4]}
7. O-O {[%clk 0:03:03.3]} 7... c5 {[%clk 0:02:58.3]} 8. e4 {[%clk 0:02:57]} 8...
Nb4 {[%clk 0:02:56.7]} 9. d5 {[%clk 0:02:54.9]} 9... e6 {[%clk 0:02:56.7]} 10.
a3 {[%clk 0:02:55]} 10... N4a6 {[%clk 0:02:56.6]} 11. Nc3 {[%clk 0:02:55.2]}
11... exd5 {[%clk 0:02:56.2]} 12. exd5 {[%clk 0:02:53.3]} 12... Bg4 {[%clk
0:02:55.4]} 13. h3 {[%clk 0:02:33.3]} 13... Bxf3 {[%clk 0:02:55.2]} 14. Qxf3
{[%clk 0:02:34.2]} 14... Nd7 {[%clk 0:02:54.2]} 15. d6 {[%clk 0:02:32.8]} 15...
Rb8 {[%clk 0:02:51.9]} 16. Bf4 {[%clk 0:02:32.7]} 16... Ne5 {[%clk 0:02:48.1]}
17. Qd5 {[%clk 0:02:32.5]} 17... Nc6 {[%clk 0:02:44.4]} 18. d7 {[%clk
0:02:29.2]} 18... Nc7 {[%clk 0:02:39.6]} 19. Qxc5 {[%clk 0:02:12.8]} 19... Ne6
{[%clk 0:02:39.2]} 20. Qd6 {[%clk 0:02:05.9]} 20... Nxf4 {[%clk 0:02:37.2]} 21.
gxf4 {[%clk 0:02:06.3]} 21... Qh4 {[%clk 0:02:31.4]} 22. Rad1 {[%clk 0:02:04.6]}
22... Bh6 {[%clk 0:02:19.9]} 23. Nd5 {[%clk 0:02:02.4]} 23... Rbd8 {[%clk
0:02:16.3]} 24. b4 {[%clk 0:01:59.3]} 24... a6 {[%clk 0:02:12.9]} 25. a4 {[%clk
0:01:58.5]} 25... Nb8 {[%clk 0:02:09.6]} 26. Qe7 {[%clk 0:01:36.8]} 26... Qxe7
{[%clk 0:01:57.7]} 27. Nxe7+ {[%clk 0:01:37.7]} 27... Kg7 {[%clk 0:01:52.2]} 28.
Bxb7 {[%clk 0:01:38.6]} 28... Rxd7 {[%clk 0:01:50.8]} 29. Rxd7 {[%clk
0:01:35.7]} 29... Nxd7 {[%clk 0:01:51.7]} 30. Bxa6 {[%clk 0:01:36]} 30... Bxf4
{[%clk 0:01:47.3]} 31. a5 {[%clk 0:01:32.2]} 31... Bd6 {[%clk 0:01:39.6]} 32.
Nc6 {[%clk 0:01:25.1]} 32... Nb8 {[%clk 0:01:28.7]} 33. Nxb8 {[%clk 0:01:25]}
33... Rxb8 {[%clk 0:01:29.6]} 34. b5 {[%clk 0:01:25.7]} 34... Bb4 {[%clk
0:01:27.3]} 35. Ra1 {[%clk 0:01:24.4]} 35... Kf6 {[%clk 0:01:16.8]} 36. Ra4
{[%clk 0:01:24.2]} 36... Bc5 {[%clk 0:01:14.3]} 37. Rc4 {[%clk 0:01:23.2]} 37...
Bd6 {[%clk 0:01:13.5]} 38. Rc6 {[%clk 0:01:17.7]} 38... Ke7 {[%clk 0:01:12.7]}
39. b6 {[%clk 0:01:18.2]} 39... Ra8 {[%clk 0:01:09.3]} 40. b7 {[%clk 0:01:17.7]}
40... Rd8 {[%clk 0:01:03.1]} 41. Bb5 {[%clk 0:01:13.9]} 41... Bb8 {[%clk
0:01:02.8]} 42. Rc8 {[%clk 0:01:10.3]} 42... h5 {[%clk 0:00:55.9]} 43. a6 {[%clk
0:01:10.2]} 43... Ba7 {[%clk 0:00:48.1]} 44. Ra8 {[%clk 0:01:10.1]} 44... Bb8
{[%clk 0:00:43.4]} 45. Rxb8 {[%clk 0:01:08.8]} 45... Rxb8 {[%clk 0:00:44.3]} 46.
Bc6 {[%clk 0:01:06.2]} 46... Kd6 {[%clk 0:00:44.1]} 47. a7 {[%clk 0:01:06]} 1-0

[Event "Late-Titled-Tuesday-Blitz-September-19-2023"]
[Site "Chess.com"]
[Date "2023.09.19"]
[Round "2"]
[White "Levanzovsky"]
[Black "KVAIDAN"]
[Result "1-0"]
[WhiteElo "2472"]
[BlackElo "2243"]
[TimeControl "180+1"]
[EndTime "14:16:05 PDT"]
[Termination "Levanzovsky won by checkmate"]

1. e4 {[%clk 0:02:57.8]} 1... e5 {[%clk 0:02:59.9]} 2. Nf3 {[%clk 0:02:54.5]}
2... d5 {[%clk 0:02:59.8]} 3. exd5 {[%clk 0:02:49.4]} 3... e4 {[%clk 0:03:00]}
4. Nd4 {[%clk 0:02:46]} 4... Nf6 {[%clk 0:02:59]} 5. c4 {[%clk 0:02:45.2]} 5...
c6 {[%clk 0:02:57.3]} 6. Nc3 {[%clk 0:02:45.3]} 6... cxd5 {[%clk 0:02:57.1]} 7.
cxd5 {[%clk 0:02:44.7]} 7... Bc5 {[%clk 0:02:56]} 8. Nb3 {[%clk 0:02:41]} 8...
Bb4 {[%clk 0:02:53.5]} 9. Bb5+ {[%clk 0:02:38.9]} 9... Bd7 {[%clk 0:02:53.4]}
10. Bxd7+ {[%clk 0:02:38]} 10... Nbxd7 {[%clk 0:02:53.9]} 11. O-O {[%clk
0:02:37.1]} 11... O-O {[%clk 0:02:54.3]} 12. Re1 {[%clk 0:02:35.6]} 12... Re8
{[%clk 0:02:53.3]} 13. d3 {[%clk 0:02:31.2]} 13... Bxc3 {[%clk 0:02:46.5]} 14.
bxc3 {[%clk 0:02:29.9]} 14... Nc5 {[%clk 0:02:43.5]} 15. dxe4 {[%clk 0:02:27.7]}
15... Ncxe4 {[%clk 0:02:43.6]} 16. c4 {[%clk 0:02:21.7]} 16... Rc8 {[%clk
0:02:43.1]} 17. Qd4 {[%clk 0:02:12.1]} 17... a5 {[%clk 0:02:26.1]} 18. a4 {[%clk
0:01:53.9]} 18... Nd6 {[%clk 0:02:21.2]} 19. Rxe8+ {[%clk 0:01:17.7]} 19... Qxe8
{[%clk 0:02:20.9]} 20. Ba3 {[%clk 0:01:17.2]} 20... Nxc4 {[%clk 0:02:13.1]} 21.
Bc5 {[%clk 0:01:17.5]} 21... b6 {[%clk 0:02:00.7]} 22. Qxc4 {[%clk 0:01:16.5]}
22... bxc5 {[%clk 0:01:56.4]} 23. Nxa5 {[%clk 0:01:12.1]} 23... Qe5 {[%clk
0:01:54.9]} 24. Rd1 {[%clk 0:01:11.4]} 24... Ne4 {[%clk 0:01:50.7]} 25. Nc6
{[%clk 0:01:03.9]} 25... Qf4 {[%clk 0:01:39.4]} 26. Ne7+ {[%clk 0:00:59.1]}
26... Kh8 {[%clk 0:01:38.5]} 27. Nxc8 {[%clk 0:00:59]} 27... Qxf2+ {[%clk
0:01:38.7]} 28. Kh1 {[%clk 0:00:59.2]} 28... Qh4 {[%clk 0:01:37.8]} 29. Qb3
{[%clk 0:00:42.7]} 29... c4 {[%clk 0:01:26.6]} 30. Qe3 {[%clk 0:00:32.5]} 30...
f5 {[%clk 0:01:22]} 31. d6 {[%clk 0:00:23.7]} 31... h6 {[%clk 0:01:21.4]} 32. d7
{[%clk 0:00:23.7]} 32... Nf2+ {[%clk 0:01:21.4]} 33. Qxf2 {[%clk 0:00:22.4]}
33... Qxf2 {[%clk 0:01:21.3]} 34. d8=Q+ {[%clk 0:00:22.7]} 34... Kh7 {[%clk
0:01:22.2]} 35. Ne7 {[%clk 0:00:22.4]} 35... h5 {[%clk 0:01:17.3]} 36. Qg8+
{[%clk 0:00:18.6]} 36... Kh6 {[%clk 0:01:17.2]} 37. Qf7 {[%clk 0:00:17.5]} 37...
Kh7 {[%clk 0:01:09.5]} 38. Qxh5# {[%clk 0:00:16.5]} 1-0

[Event "Late-Titled-Tuesday-Blitz-September-19-2023"]
[Site "Chess.com"]
[Date "2023.09.19"]
[Round "2"]
[White "FabianoCaruana"]
[Black "djano"]
[Result "1-0"]
[WhiteElo "3056"]
[BlackElo "2617"]
[TimeControl "180+1"]
[EndTime "14:16:11 PDT"]
[Termination "FabianoCaruana won by resignation"]

1. e4 {[%clk 0:03:00.9]} 1... c5 {[%clk 0:02:59.6]} 2. c3 {[%clk 0:03:00.9]}
2... e5 {[%clk 0:02:58]} 3. Bc4 {[%clk 0:03:00.4]} 3... Nf6 {[%clk 0:02:57.7]}
4. d3 {[%clk 0:03:00.7]} 4... Be7 {[%clk 0:02:56.1]} 5. Bg5 {[%clk 0:03:00.2]}
5... O-O {[%clk 0:02:54.4]} 6. Nf3 {[%clk 0:02:59.3]} 6... Nc6 {[%clk
0:02:54.4]} 7. O-O {[%clk 0:02:58.9]} 7... d6 {[%clk 0:02:53.6]} 8. Bxf6 {[%clk
0:02:58.2]} 8... Bxf6 {[%clk 0:02:53.6]} 9. Nbd2 {[%clk 0:02:58.9]} 9... Na5
{[%clk 0:02:48.4]} 10. Bd5 {[%clk 0:02:58.8]} 10... Kh8 {[%clk 0:02:34.5]} 11.
a3 {[%clk 0:02:57.9]} 11... Nc6 {[%clk 0:02:29]} 12. b4 {[%clk 0:02:58]} 12...
cxb4 {[%clk 0:02:27.7]} 13. axb4 {[%clk 0:02:58.9]} 13... Ne7 {[%clk 0:02:27.3]}
14. Bb3 {[%clk 0:02:56.3]} 14... d5 {[%clk 0:02:15.5]} 15. Re1 {[%clk
0:02:45.4]} 15... Be6 {[%clk 0:01:57.6]} 16. Qc2 {[%clk 0:02:39.3]} 16... Ng6
{[%clk 0:01:49.5]} 17. g3 {[%clk 0:02:37.3]} 17... a6 {[%clk 0:01:43.5]} 18.
exd5 {[%clk 0:02:35.4]} 18... Bxd5 {[%clk 0:01:43.5]} 19. Bxd5 {[%clk
0:02:36.3]} 19... Qxd5 {[%clk 0:01:44]} 20. Ne4 {[%clk 0:02:37.2]} 20... Be7
{[%clk 0:01:38.8]} 21. Qe2 {[%clk 0:02:15.7]} 21... Rfd8 {[%clk 0:01:33.1]} 22.
Rad1 {[%clk 0:02:05.5]} 22... Rac8 {[%clk 0:01:33.1]} 23. h4 {[%clk 0:02:04.6]}
23... h6 {[%clk 0:01:26.3]} 24. c4 {[%clk 0:01:55.8]} 24... Qe6 {[%clk
0:01:20.5]} 25. c5 {[%clk 0:01:56.3]} 25... f5 {[%clk 0:01:11.3]} 26. Ned2
{[%clk 0:01:54.4]} 26... Bf6 {[%clk 0:01:09.5]} 27. Nc4 {[%clk 0:01:43.7]} 27...
f4 {[%clk 0:00:49]} 28. h5 {[%clk 0:01:36.7]} 28... Nf8 {[%clk 0:00:41.4]} 29.
Nfxe5 {[%clk 0:01:32.3]} 29... Bxe5 {[%clk 0:00:28]} 30. Nxe5 {[%clk 0:01:33.2]}
30... Qf5 {[%clk 0:00:23]} 31. Qe4 {[%clk 0:01:27.6]} 31... Qxe4 {[%clk
0:00:21.3]} 32. Rxe4 {[%clk 0:01:28.5]} 32... Kg8 {[%clk 0:00:13.3]} 33. gxf4
{[%clk 0:01:27.6]} 33... Ne6 {[%clk 0:00:13.9]} 34. Ng6 {[%clk 0:01:26.4]} 34...
Re8 {[%clk 0:00:04.1]} 35. Rde1 {[%clk 0:01:25.7]} 35... Kf7 {[%clk 0:00:03.8]}
36. Ne5+ {[%clk 0:01:20.1]} 36... Kf6 {[%clk 0:00:03.9]} 37. Nc4 {[%clk
0:01:20.4]} 37... Nc7 {[%clk 0:00:03.1]} 38. Nd6 {[%clk 0:01:20]} 38... Rxe4
{[%clk 0:00:02.4]} 39. dxe4 {[%clk 0:01:20.5]} 39... Rb8 {[%clk 0:00:01.8]} 40.
e5+ {[%clk 0:01:19.8]} 40... Ke6 {[%clk 0:00:02.4]} 41. f5+ {[%clk 0:01:20]}
41... Kd5 {[%clk 0:00:02.6]} 42. e6 {[%clk 0:01:18.4]} 42... Kd4 {[%clk
0:00:02.5]} 43. e7 {[%clk 0:01:17.7]} 1-0

[Event "Late-Titled-Tuesday-Blitz-September-19-2023"]
[Site "Chess.com"]
[Date "2023.09.19"]
[Round "2"]
[White "The_Straightforward_Rook"]
[Black "rychessmaster1"]
[Result "1-0"]
[WhiteElo "2535"]
[BlackElo "2738"]
[TimeControl "180+1"]
[EndTime "14:16:13 PDT"]
[Termination "The_Straightforward_Rook won by resignation"]

1. d4 {[%clk 0:03:00.9]} 1... Nf6 {[%clk 0:03:00]} 2. c4 {[%clk 0:03:01]} 2...
e6 {[%clk 0:03:00.3]} 3. Nf3 {[%clk 0:03:01.3]} 3... d5 {[%clk 0:03:00.6]} 4.
cxd5 {[%clk 0:03:02.1]} 4... exd5 {[%clk 0:03:00.4]} 5. Nc3 {[%clk 0:03:02.8]}
5... c6 {[%clk 0:03:00.6]} 6. Qc2 {[%clk 0:03:03.5]} 6... g6 {[%clk 0:02:59.6]}
7. Bg5 {[%clk 0:03:03.9]} 7... Be7 {[%clk 0:02:58.1]} 8. e3 {[%clk 0:03:03.9]}
8... Bf5 {[%clk 0:02:58.2]} 9. Bd3 {[%clk 0:03:04.5]} 9... Bxd3 {[%clk
0:02:58.7]} 10. Qxd3 {[%clk 0:03:05.4]} 10... O-O {[%clk 0:02:57.4]} 11. Bxf6
{[%clk 0:03:04.1]} 11... Bxf6 {[%clk 0:02:57.4]} 12. h4 {[%clk 0:03:04.8]} 12...
Nd7 {[%clk 0:02:37.6]} 13. h5 {[%clk 0:03:04.5]} 13... Nb6 {[%clk 0:02:37.4]}
14. O-O-O {[%clk 0:02:50.7]} 14... a5 {[%clk 0:02:36.1]} 15. hxg6 {[%clk
0:02:44.9]} 15... fxg6 {[%clk 0:02:36.5]} 16. Rh3 {[%clk 0:02:41]} 16... Rf7
{[%clk 0:02:31]} 17. Rdh1 {[%clk 0:02:35.9]} 17... a4 {[%clk 0:02:20.9]} 18. Ne5
{[%clk 0:02:34.8]} 18... Bxe5 {[%clk 0:02:18.4]} 19. dxe5 {[%clk 0:02:35.7]}
19... Qe7 {[%clk 0:01:41.9]} 20. Qxg6+ {[%clk 0:02:32.4]} 20... Kh8 {[%clk
0:01:34.5]} 21. f4 {[%clk 0:02:07.3]} 21... Rg8 {[%clk 0:01:31.9]} 22. Qc2
{[%clk 0:02:07.9]} 22... Rgg7 {[%clk 0:01:17.7]} 23. a3 {[%clk 0:02:01.1]} 23...
Nc4 {[%clk 0:01:04.6]} 24. Qxa4 {[%clk 0:01:54.8]} 24... Rxg2 {[%clk 0:00:58.1]}
25. Qa8+ {[%clk 0:01:51.1]} 25... Rg8 {[%clk 0:00:58.4]} 26. Qa7 {[%clk
0:01:43]} 26... b6 {[%clk 0:00:41]} 27. Qxe7 {[%clk 0:01:36.7]} 27... Rxe7
{[%clk 0:00:41.9]} 28. b3 {[%clk 0:01:25.4]} 28... Nxa3 {[%clk 0:00:40.3]} 29.
Kb2 {[%clk 0:01:25.6]} 29... Nb5 {[%clk 0:00:41]} 30. Nxb5 {[%clk 0:01:25.3]}
30... cxb5 {[%clk 0:00:41.9]} 31. Kc3 {[%clk 0:01:23.4]} 31... Rg2 {[%clk
0:00:42.3]} 32. Kb4 {[%clk 0:01:22.7]} 32... Rb2 {[%clk 0:00:41.7]} 33. Rh6
{[%clk 0:01:21.3]} 33... Rb7 {[%clk 0:00:37]} 34. e6 {[%clk 0:01:16.3]} 34...
Re2 {[%clk 0:00:32.6]} 35. R1h3 {[%clk 0:01:15.7]} 35... Kg8 {[%clk 0:00:32.4]}
36. f5 {[%clk 0:01:14.6]} 36... Rf2 {[%clk 0:00:26.8]} 37. f6 {[%clk 0:01:13.2]}
37... Kf8 {[%clk 0:00:20]} 38. Kxb5 {[%clk 0:01:10.1]} 38... Rf5 {[%clk
0:00:13.4]} 39. Kc6 {[%clk 0:01:07.8]} 39... Ra7 {[%clk 0:00:13.5]} 40. Rxh7
{[%clk 0:01:05.1]} 40... Rxh7 {[%clk 0:00:13.6]} 41. Rxh7 {[%clk 0:01:05.4]}
41... Rxf6 {[%clk 0:00:14.2]} 42. Rf7+ {[%clk 0:01:04.8]} 42... Rxf7 {[%clk
0:00:14.3]} 43. exf7 {[%clk 0:01:05.7]} 43... Kxf7 {[%clk 0:00:15.2]} 44. Kxd5
{[%clk 0:01:05.9]} 1-0

[Event "Late-Titled-Tuesday-Blitz-September-19-2023"]
[Site "Chess.com"]
[Date "2023.09.19"]
[Round "2"]
[White "Dhaydon19"]
[Black "Harald_Schmidt"]
[Result "0-1"]
[WhiteElo "2655"]
[BlackElo "2316"]
[TimeControl "180+1"]
[EndTime "14:16:13 PDT"]
[Termination "Harald_Schmidt won by resignation"]

1. e4 {[%clk 0:03:00.9]} 1... c5 {[%clk 0:02:59]} 2. Nc3 {[%clk 0:03:01.1]} 2...
a6 {[%clk 0:02:58.3]} 3. a4 {[%clk 0:03:00.4]} 3... d6 {[%clk 0:02:54.3]} 4. g3
{[%clk 0:03:00.7]} 4... Nc6 {[%clk 0:02:53.1]} 5. Bg2 {[%clk 0:03:01.1]} 5...
Nd4 {[%clk 0:02:51.4]} 6. Nge2 {[%clk 0:03:01.3]} 6... Nf6 {[%clk 0:02:45.5]} 7.
h3 {[%clk 0:02:59]} 7... g6 {[%clk 0:02:43.5]} 8. d3 {[%clk 0:02:58.9]} 8... Bg7
{[%clk 0:02:42.8]} 9. Nxd4 {[%clk 0:02:58.7]} 9... cxd4 {[%clk 0:02:42.1]} 10.
Ne2 {[%clk 0:02:59.5]} 10... e5 {[%clk 0:02:37.8]} 11. O-O {[%clk 0:02:58.2]}
11... O-O {[%clk 0:02:36.8]} 12. f4 {[%clk 0:02:56.8]} 12... Bd7 {[%clk
0:02:30.7]} 13. a5 {[%clk 0:02:52.2]} 13... Bc6 {[%clk 0:02:28.6]} 14. f5 {[%clk
0:02:48.8]} 14... d5 {[%clk 0:02:28]} 15. g4 {[%clk 0:02:43.1]} 15... dxe4
{[%clk 0:02:27.4]} 16. Ng3 {[%clk 0:02:26.3]} 16... e3 {[%clk 0:02:17.8]} 17. g5
{[%clk 0:02:25.9]} 17... Bxg2 {[%clk 0:02:00.8]} 18. Kxg2 {[%clk 0:02:25.9]}
18... Qd5+ {[%clk 0:01:57.4]} 19. Kh2 {[%clk 0:02:20.7]} 19... Nd7 {[%clk
0:01:55.1]} 20. Qg4 {[%clk 0:02:15.7]} 20... Rfe8 {[%clk 0:01:48.4]} 21. Rg1
{[%clk 0:01:48.6]} 21... Rac8 {[%clk 0:01:46.9]} 22. Rg2 {[%clk 0:01:47.1]}
22... Nc5 {[%clk 0:01:43.1]} 23. h4 {[%clk 0:01:41.3]} 23... e4 {[%clk
0:01:42.6]} 24. f6 {[%clk 0:01:38.3]} 24... Bf8 {[%clk 0:01:41.8]} 25. c4 {[%clk
0:01:33.1]} 25... Qe5 {[%clk 0:01:33.5]} 26. dxe4 {[%clk 0:01:23.4]} 26... Bd6
{[%clk 0:01:25.5]} 27. Kh3 {[%clk 0:01:20.8]} 27... Nxe4 {[%clk 0:01:24]} 28.
Nxe4 {[%clk 0:01:17.7]} 28... Qxe4 {[%clk 0:01:23.4]} 29. h5 {[%clk 0:01:12.9]}
29... Qxg4+ {[%clk 0:01:15.7]} 30. Kxg4 {[%clk 0:01:12.2]} 30... d3 {[%clk
0:01:07.9]} 31. b3 {[%clk 0:01:05.3]} 31... Bb4 {[%clk 0:00:57.5]} 32. hxg6
{[%clk 0:00:57]} 32... fxg6 {[%clk 0:00:50.6]} 33. Bb2 {[%clk 0:00:49.7]} 33...
e2 {[%clk 0:00:47.4]} 34. Rf2 {[%clk 0:00:49.7]} 34... Kf7 {[%clk 0:00:46.3]}
35. Rh1 {[%clk 0:00:48.3]} 35... h5+ {[%clk 0:00:44.8]} 36. gxh6 {[%clk
0:00:46.7]} 36... e1=Q {[%clk 0:00:43.3]} 37. Rxe1 {[%clk 0:00:43.2]} 37... Bxe1
{[%clk 0:00:42.3]} 38. Rf3 {[%clk 0:00:41.9]} 38... d2 {[%clk 0:00:41.2]} 39.
Rd3 {[%clk 0:00:41.8]} 39... Rcd8 {[%clk 0:00:40.8]} 40. Rxd8 {[%clk 0:00:41.3]}
40... Rxd8 {[%clk 0:00:40.2]} 0-1

[Event "Late-Titled-Tuesday-Blitz-September-19-2023"]
[Site "Chess.com"]
[Date "2023.09.19"]
[Round "2"]
[White "Zapateado"]
[Black "dorpato"]
[Result "1-0"]
[WhiteElo "2412"]
[BlackElo "2003"]
[TimeControl "180+1"]
[EndTime "14:16:15 PDT"]
[Termination "Zapateado won by resignation"]

1. c4 {[%clk 0:02:11.3]} 1... e5 {[%clk 0:02:53.8]} 2. Nc3 {[%clk 0:02:11]} 2...
Nc6 {[%clk 0:02:53.1]} 3. g3 {[%clk 0:02:11.9]} 3... d6 {[%clk 0:02:52]} 4. Bg2
{[%clk 0:02:12.4]} 4... Be6 {[%clk 0:02:51.1]} 5. b3 {[%clk 0:02:11.5]} 5... g6
{[%clk 0:02:51]} 6. Bb2 {[%clk 0:02:11.3]} 6... Bg7 {[%clk 0:02:47.8]} 7. e3
{[%clk 0:02:11.3]} 7... Qd7 {[%clk 0:02:45.2]} 8. Nge2 {[%clk 0:02:11.7]} 8...
Bh3 {[%clk 0:02:37.5]} 9. Bxh3 {[%clk 0:02:12.1]} 9... Qxh3 {[%clk 0:02:34.9]}
10. Ng1 {[%clk 0:02:13]} 10... Qe6 {[%clk 0:02:22.7]} 11. Qe2 {[%clk 0:02:08.5]}
11... Nge7 {[%clk 0:02:13.2]} 12. O-O-O {[%clk 0:02:05.1]} 12... O-O {[%clk
0:02:08.5]} 13. f4 {[%clk 0:02:02.5]} 13... f5 {[%clk 0:02:03.5]} 14. d4 {[%clk
0:01:55.9]} 14... exd4 {[%clk 0:01:34.5]} 15. exd4 {[%clk 0:01:56.8]} 15... Nxd4
{[%clk 0:01:09.1]} 16. Rxd4 {[%clk 0:01:51.8]} 16... Qxe2 {[%clk 0:01:07.6]} 17.
Ngxe2 {[%clk 0:01:52.7]} 17... Bxd4 {[%clk 0:01:07.4]} 18. Nxd4 {[%clk
0:01:53.6]} 18... Nc6 {[%clk 0:01:03.2]} 19. Ne6 {[%clk 0:01:49.2]} 19... Rf7
{[%clk 0:01:00.3]} 20. Nd5 {[%clk 0:01:48.4]} 20... Rc8 {[%clk 0:00:43.1]} 21.
Nf6+ {[%clk 0:01:47.3]} 21... Rxf6 {[%clk 0:00:20.4]} 22. Bxf6 {[%clk
0:01:48.2]} 22... Kf7 {[%clk 0:00:20.8]} 23. Nxc7 {[%clk 0:01:46.2]} 23... Rxc7
{[%clk 0:00:17.1]} 24. Bc3 {[%clk 0:01:42]} 24... d5 {[%clk 0:00:16.1]} 25. cxd5
{[%clk 0:01:40.6]} 25... Nb4 {[%clk 0:00:16.3]} 26. Kb2 {[%clk 0:01:38.2]} 26...
Nxd5 {[%clk 0:00:15.1]} 27. Be5 {[%clk 0:01:38.1]} 27... Rd7 {[%clk 0:00:14.2]}
28. Rd1 {[%clk 0:01:38]} 28... Nb6 {[%clk 0:00:14.4]} 29. Rxd7+ {[%clk
0:01:32.7]} 29... Nxd7 {[%clk 0:00:15.3]} 30. Bd4 {[%clk 0:01:33.1]} 30... b6
{[%clk 0:00:15.5]} 31. Kc3 {[%clk 0:01:33.5]} 31... Ke6 {[%clk 0:00:15.7]} 32.
Kc4 {[%clk 0:01:33.9]} 32... Kd6 {[%clk 0:00:15.6]} 33. Kb5 {[%clk 0:01:33.8]}
33... Kd5 {[%clk 0:00:14.8]} 34. Bf2 {[%clk 0:01:30.6]} 34... Nb8 {[%clk
0:00:14.9]} 35. a4 {[%clk 0:01:28.7]} 35... Ke4 {[%clk 0:00:14.9]} 36. a5 {[%clk
0:01:28.8]} 36... bxa5 {[%clk 0:00:14.5]} 37. Bxa7 {[%clk 0:01:25.8]} 37... Nd7
{[%clk 0:00:13.9]} 38. Kxa5 {[%clk 0:01:26.2]} 38... Kf3 {[%clk 0:00:13.9]} 39.
Kb5 {[%clk 0:01:24.1]} 39... Kg2 {[%clk 0:00:13.8]} 40. Kc6 {[%clk 0:01:24.6]}
40... Nf6 {[%clk 0:00:12.8]} 41. b4 {[%clk 0:01:24.7]} 41... Kxh2 {[%clk
0:00:11.8]} 42. b5 {[%clk 0:01:25.2]} 42... Ng8 {[%clk 0:00:08.3]} 43. b6 {[%clk
0:01:24.7]} 43... Ne7+ {[%clk 0:00:08.9]} 44. Kd7 {[%clk 0:01:25.3]} 44... Nd5
{[%clk 0:00:07.7]} 45. b7 {[%clk 0:01:25.1]} 45... Nf6+ {[%clk 0:00:07.1]} 46.
Ke6 {[%clk 0:01:24.8]} 46... Ne8 {[%clk 0:00:05.8]} 47. b8=Q {[%clk 0:01:24.2]}
1-0